bitfinex-derivatives/quotes_BTCF0:USTF0_20240817
["timestamp","ask_amount","ask_price","bid_price","bid_amount"]
[1723877060845,0.02025343,59192.0,59191.0,0.53534373]
[1723877061031,0.02025343,59192.0,59191.0,0.45104843]
[1723877061238,0.02025343,59192.0,59191.0,0.53528288]
[1723877061648,0.02025343,59192.0,59191.0,0.45104843]
[1723877062143,0.03225343,59192.0,59191.0,0.45204843]
[1723877062941,0.04625343,59192.0,59191.0,0.45304843]
[1723877063147,0.04625343,59192.0,59191.0,0.44692498]
[1723877063345,0.04625343,59192.0,59191.0,0.45691319]
[1723877063546,0.04625343,59192.0,59191.0,0.61318149]
[1723877064241,0.04625343,59192.0,59191.0,0.44034921]
[1723877064947,0.04625343,59192.0,59191.0,0.07954921]
[1723877065150,0.04625343,59192.0,59191.0,0.44034921]
[1723877065646,0.04625343,59192.0,59191.0,0.07954921]
[1723877066444,0.04625343,59192.0,59191.0,0.44034921]
[1723877067151,0.04625343,59192.0,59191.0,0.5075726]
[1723877067849,0.04625343,59192.0,59191.0,0.44034921]
[1723877068047,0.04625343,59192.0,59191.0,0.50757179]
[1723877068255,0.04625343,59192.0,59191.0,0.50756042]
[1723877068753,0.04625343,59192.0,59191.0,0.44034921]
[1723877069153,0.04625343,59192.0,59191.0,0.50755964]
[1723877069652,0.04625343,59192.0,59191.0,0.60095964]
[1723877072944,0.04625343,59192.0,59191.0,0.24015964]
[1723877073150,0.04625343,59192.0,59191.0,0.60095964]
[1723877073454,0.04625343,59192.0,59191.0,0.53374921]
[1723877074057,0.04625343,59192.0,59191.0,0.60095964]
[1723877074559,0.04625343,59192.0,59191.0,0.53374921]
[1723877074750,0.04625343,59192.0,59191.0,0.60095964]
[1723877075149,0.04625343,59192.0,59191.0,0.53374921]
[1723877080545,0.04625343,59192.0,59191.0,0.17294921]
[1723877081061,0.04625343,59192.0,59191.0,0.53374921]
[1723877081762,0.03625343,59192.0,59191.0,0.53274921]
[1723877082665,0.02425343,59192.0,59191.0,0.53174921]
[1723877082855,0.02425343,59192.0,59191.0,0.17094921]
[1723877082856,0.02625343,59192.0,59191.0,0.17094921]
[1723877083163,0.02625343,59192.0,59191.0,0.70427683]
[1723877083856,0.02625343,59192.0,59191.0,0.7043272]
[1723877084253,0.02625343,59192.0,59191.0,0.62020222]
[1723877084854,0.02625343,59192.0,59191.0,0.62027162]
[1723877086159,0.02625343,59192.0,59191.0,0.72155539]
[1723877087163,0.02625343,59192.0,59191.0,0.62027162]
[1723877088165,0.02625343,59192.0,59191.0,0.72007385]
[1723877091661,0.02625343,59192.0,59191.0,0.62667385]
[1723877091861,0.02625343,59192.0,59191.0,0.72007385]
[1723877092257,0.02625343,59192.0,59191.0,0.82565718]
[1723877093866,0.02625343,59192.0,59191.0,0.72607597]
[1723877094066,0.02625343,59192.0,59191.0,0.82584844]
[1723877095068,0.02625343,59192.0,59191.0,0.46504844]
[1723877095969,0.02625343,59192.0,59191.0,0.82584844]
[1723877096371,0.02625343,59192.0,59191.0,0.46504844]
[1723877096562,0.02625343,59192.0,59191.0,0.82584844]
[1723877098371,0.02625343,59192.0,59191.0,0.46504844]
[1723877098557,0.02625343,59192.0,59191.0,0.82584844]
[1723877100462,0.00625343,59192.0,59191.0,1.58773155]
[1723877100659,0.00625343,59192.0,59191.0,1.49887615]
[1723877100864,0.00625343,59192.0,59191.0,2.28803715]
[1723877101368,0.00625343,59192.0,59191.0,2.17529185]
[1723877101670,0.00625343,59192.0,59191.0,0.62424774]
[1723877101862,0.00625343,59192.0,59191.0,0.98504774]
[1723877105862,0.00625343,59192.0,59191.0,0.98602559]
[1723877110374,0.00625343,59192.0,59191.0,0.98568066]
[1723877111079,0.00625343,59192.0,59191.0,0.62488066]
[1723877111277,0.00625343,59192.0,59191.0,0.98568066]
[1723877113080,0.00625343,59192.0,59191.0,0.62488066]
[1723877113281,0.00625343,59192.0,59191.0,0.98568066]
[1723877115480,0.00625343,59192.0,59191.0,0.82621759]
[1723877117387,0.00625343,59192.0,59191.0,0.73281759]
[1723877117572,0.00625343,59192.0,59191.0,0.82621759]
[1723877118077,0.00625343,59192.0,59191.0,0.46541759]
[1723877118279,0.00625343,59192.0,59191.0,0.26771626]
[1723877118479,0.0569354,59192.0,59191.0,0.16648925]
[1723877118681,0.00625343,59192.0,59191.0,0.16193411]
[1723877118881,0.77460875,59192.0,59191.0,0.07754921]
[1723877119077,0.70705343,59192.0,59191.0,0.14501845]
[1723877119680,0.34625343,59192.0,59191.0,0.14501845]
[1723877120385,1.34649343,59192.0,59191.0,0.00998821]
[1723877120593,1.34649343,59192.0,59189.0,0.06746924]
[1723877120794,0.05061357,59190.0,59189.0,0.06746924]
[1723877121083,0.29,59190.0,59189.0,0.06746924]
[1723877121286,0.29,59190.0,59189.0,0.01023018]
[1723877121287,0.79684,59190.0,59189.0,0.01023018]
[1723877121488,0.79684,59190.0,59188.0,0.13503424]
[1723877121787,0.0488,59189.0,59188.0,0.13503424]
[1723877122089,0.2188,59189.0,59188.0,0.13503424]
[1723877122990,0.2188,59189.0,59188.0,0.13603424]
[1723877122991,0.21884,59189.0,59188.0,0.13603424]
[1723877123192,0.21884,59189.0,59188.0,0.068565]
[1723877124585,0.21984,59189.0,59188.0,0.068565]
[1723877130291,0.21984,59189.0,59188.0,0.11907375]
[1723877130886,0.21984,59189.0,59188.0,0.068565]
[1723877131693,0.21984,59189.0,59188.0,0.11907548]
[1723877136991,0.21984,59189.0,59188.0,0.068565]
[1723877137591,0.21984,59189.0,59188.0,0.11907645]
[1723877139094,0.21984,59189.0,59188.0,0.068565]
[1723877139485,0.21984,59189.0,59188.0,0.11909329]
[1723877140092,0.21984,59189.0,59188.0,0.068565]
[1723877140995,0.21984,59189.0,59188.0,0.11910304]
[1723877142098,0.21984,59189.0,59188.0,0.068565]
[1723877144299,0.17104,59189.0,59188.0,0.068565]
[1723877145095,0.22165357,59189.0,59188.0,0.13603424]
[1723877146100,0.22165357,59189.0,59188.0,0.068565]
[1723877147301,0.17104,59189.0,59188.0,0.068565]
[1723877147801,0.17104,59189.0,59185.0,1e-08]
[1723877147802,1.25558061,59189.0,59185.0,1e-08]
[1723877148004,0.0934,59186.0,59185.0,0.067568]
[1723877148304,0.2834,59186.0,59185.0,0.067568]
[1723877148500,0.36770061,59186.0,59185.0,0.067568]
[1723877149095,0.36774061,59186.0,59185.0,0.072568]
[1723877149292,0.28344,59186.0,59185.0,0.12321022]
[1723877149495,0.28344,59186.0,59185.0,0.072568]
[1723877150097,0.28344,59186.0,59185.0,0.12619936]
[1723877150596,0.28344,59186.0,59185.0,0.12119936]
[1723877150896,0.28344,59186.0,59185.0,0.12619936]
[1723877151402,0.64424,59186.0,59185.0,0.12619936]
[1723877152095,0.28344,59186.0,59185.0,0.12619936]
[1723877152293,0.64424,59186.0,59185.0,0.12619936]
[1723877152803,0.64424,59186.0,59185.0,0.075568]
[1723877156292,1.15112,59186.0,59185.0,0.075568]
[1723877158308,1.21856761,59186.0,59185.0,0.075568]
[1723877158700,0.85776761,59186.0,59185.0,0.075568]
[1723877158899,1.21856761,59186.0,59185.0,0.075568]
[1723877159107,1.21856435,59186.0,59185.0,0.075568]
[1723877159411,0.55084,59186.0,59185.0,0.075568]
[1723877159607,0.55084,59186.0,59185.0,0.168968]
[1723877161505,0.19004,59186.0,59185.0,0.168968]
[1723877161715,0.55084,59186.0,59185.0,0.168968]
[1723877162210,0.55084,59186.0,59185.0,0.075568]
[1723877165019,0.19004,59186.0,59185.0,0.075568]
[1723877165207,0.55084,59186.0,59185.0,0.075568]
[1723877165413,0.61828435,59186.0,59185.0,0.075568]
[1723877165615,0.55084,59186.0,59185.0,0.075568]
[1723877168004,0.19004,59186.0,59185.0,0.075568]
[1723877169718,0.28344,59186.0,59185.0,0.075568]
[1723877171123,0.64424,59186.0,59185.0,0.075568]
[1723877173917,0.28344,59186.0,59185.0,0.075568]
[1723877174221,0.64424,59186.0,59185.0,0.075568]
[1723877175122,0.72854061,59186.0,59185.0,0.075568]
[1723877175322,0.64424,59186.0,59185.0,0.075568]
[1723877176125,0.72854061,59186.0,59185.0,0.12619936]
[1723877176720,0.36774061,59186.0,59185.0,0.12619936]
[1723877177113,0.3108192,59186.0,59185.0,0.075568]
[1723877177522,0.2174192,59186.0,59185.0,0.075568]
[1723877177822,0.28344,59186.0,59185.0,0.075568]
[1723877178024,0.31081923,59186.0,59185.0,0.075568]
[1723877179018,0.31081923,59186.0,59185.0,0.1262468]
[1723877179731,0.31081923,59186.0,59185.0,0.075568]
[1723877179934,0.31281923,59186.0,59185.0,0.072568]
[1723877180122,0.31281923,59186.0,59185.0,0.12324711]
[1723877180318,0.31281923,59186.0,59185.0,0.072568]
[1723877180523,0.31281923,59186.0,59185.0,0.12324712]
[1723877180731,0.31281923,59186.0,59185.0,0.11824712]
[1723877183030,0.31281923,59186.0,59185.0,0.11824569]
[1723877186026,0.31281923,59186.0,59185.0,0.067568]
[1723877186027,0.36985848,59186.0,59185.0,0.067568]
[1723877186723,0.28544,59186.0,59185.0,0.067568]
[1723877187133,0.36988133,59186.0,59185.0,0.067568]
[1723877188132,0.28544,59186.0,59185.0,0.067568]
[1723877190333,0.19204,59186.0,59185.0,0.067568]
[1723877190530,0.28544,59186.0,59185.0,0.067568]
[1723877194434,0.31281885,59186.0,59185.0,0.067568]
[1723877195638,0.28544,59186.0,59185.0,0.067568]
[1723877196334,0.31281881,59186.0,59185.0,0.067568]
[1723877196938,0.28544,59186.0,59185.0,0.067568]
[1723877198326,0.31281865,59186.0,59185.0,0.067568]
[1723877201450,0.27651477,59186.0,59185.0,0.067568]
[1723877201637,0.19204,59186.0,59185.0,0.067568]
[1723877206045,0.28544,59186.0,59185.0,0.067568]
[1723877206941,0.36991477,59186.0,59185.0,0.067568]
[1723877207650,0.28544,59186.0,59185.0,0.067568]
[1723877207838,0.28544,59186.0,59185.0,0.13510971]
[1723877208745,0.28544,59186.0,59185.0,0.067568]
[1723877208941,0.28544,59186.0,59185.0,0.13510971]
[1723877209337,0.28544,59186.0,59185.0,0.067568]
[1723877209544,0.28544,59186.0,59185.0,0.13510971]
[1723877213066,0.28544,59186.0,59185.0,0.13509082]
[1723877213266,0.28544,59186.0,59185.0,0.067568]
[1723877222973,0.28544,59186.0,59185.0,0.13509343]
[1723877227479,0.36991477,59186.0,59185.0,0.067568]
[1723877227871,0.28544,59186.0,59185.0,0.13509343]
[1723877228071,0.36991477,59186.0,59185.0,0.067568]
[1723877228783,0.36991477,59186.0,59185.0,0.11822361]
[1723877228784,0.31281947,59186.0,59185.0,0.11822361]
[1723877229079,0.31281947,59186.0,59184.0,0.05065919]
[1723877229285,0.48157947,59185.0,59184.0,0.05065919]
[1723877229489,0.067569,59184.0,59183.0,0.05065919]
[1723877229677,0.56834847,59184.0,59183.0,0.05065919]
[1723877230182,0.06757,59183.0,59182.0,0.05065919]
[1723877230483,0.69511135,59183.0,59182.0,0.05065919]
[1723877230681,1.05491135,59183.0,59182.0,0.05065919]
[1723877231187,1.05491135,59183.0,59181.0,0.05065919]
[1723877231388,0.154972,59182.0,59181.0,0.05065919]
[1723877231576,0.1074,59182.0,59181.0,0.05064584]
[1723877231782,0.20235481,59182.0,59181.0,0.05064791]
[1723877231981,0.067574,59180.0,59179.0,0.05064791]
[1723877232183,0.34541089,59180.0,59179.0,0.05064791]
[1723877232592,0.28835738,59180.0,59178.0,0.05064791]
[1723877232774,0.067575,59179.0,59177.0,0.05081583]
[1723877233087,0.3608,59178.0,59177.0,0.05081583]
[1723877233280,0.6978,59178.0,59177.0,0.05081583]
[1723877233783,0.6938,59178.0,59177.0,0.00016792]
[1723877234184,0.69384,59178.0,59177.0,0.00116792]
[1723877234781,0.69484,59178.0,59177.0,0.00116792]
[1723877234987,0.70184,59178.0,59177.0,0.00116792]
[1723877236993,0.70084,59178.0,59177.0,0.00116792]
[1723877237193,0.77230879,59178.0,59177.0,0.00016792]
[1723877237381,0.77630879,59178.0,59177.0,0.00016792]
[1723877237781,0.77230879,59178.0,59177.0,0.00016792]
[1723877237989,0.71084,59178.0,59177.0,0.00016792]
[1723877238390,0.71384,59178.0,59177.0,0.00016792]
[1723877240188,0.35304,59178.0,59177.0,0.00016792]
[1723877247382,0.42050879,59178.0,59177.0,0.00016792]
[1723877247788,0.35304,59178.0,59177.0,0.00016792]
[1723877248591,0.44644,59178.0,59177.0,0.00016792]
[1723877250186,0.51390879,59178.0,59177.0,0.00016792]
[1723877254296,0.44644,59178.0,59177.0,0.05081583]
[1723877254696,0.35304,59178.0,59177.0,0.05081583]
[1723877254897,0.44644,59178.0,59177.0,0.05081583]
[1723877256194,0.44644,59178.0,59177.0,0.00016792]
[1723877256394,0.44644,59178.0,59177.0,0.05078332]
[1723877256895,0.44644,59178.0,59177.0,0.00016792]
[1723877258292,0.5308767,59178.0,59177.0,0.05078332]
[1723877258595,0.44644,59178.0,59177.0,0.00016792]
[1723877258894,0.514016,59178.0,59177.0,0.00016792]
[1723877259102,0.514016,59178.0,59173.0,0.06751856]
[1723877259103,0.06758,59175.0,59173.0,0.06751856]
[1723877259290,0.0934,59174.0,59173.0,0.06751856]
[1723877259496,0.4334,59174.0,59172.0,0.06751856]
[1723877259695,0.0934,59173.0,59172.0,0.06751856]
[1723877259901,0.4034,59173.0,59172.0,0.06751856]
[1723877260103,0.40356792,59173.0,59172.0,0.06751856]
[1723877260305,0.40356792,59173.0,59170.0,0.067585]
[1723877260496,0.06756635,59172.0,59170.0,0.067585]
[1723877260694,0.33756635,59172.0,59170.0,0.067585]
[1723877261594,4e-05,59171.0,59170.0,0.067585]
[1723877261793,0.01004,59171.0,59170.0,0.067585]
[1723877263410,0.01004,59171.0,59170.0,0.068585]
[1723877263803,0.07760635,59171.0,59170.0,0.071585]
[1723877264304,0.01004,59171.0,59168.0,0.0853049]
[1723877264602,0.15796522,59169.0,59167.0,0.01020465]
[1723877264808,0.15796522,59169.0,59164.0,0.0934]
[1723877264809,0.06756522,59168.0,59165.0,0.0843849]
[1723877265009,0.25756522,59168.0,59165.0,0.0843849]
[1723877265307,0.05066443,59166.0,59165.0,0.067591]
[1723877265913,0.04966443,59166.0,59165.0,0.067591]
[1723877266101,0.04970443,59166.0,59165.0,0.067591]
[1723877266504,0.04970443,59166.0,59165.0,0.113991]
[1723877266704,0.04870443,59166.0,59165.0,0.114991]
[1723877267412,0.00204,59166.0,59165.0,0.116991]
[1723877269601,0.01204,59166.0,59165.0,0.116991]
[1723877280708,0.01204,59166.0,59165.0,0.070591]
[1723877282818,0.17300522,59166.0,59165.0,0.070591]
[1723877283218,0.17300522,59166.0,59165.0,0.13811765]
[1723877283421,0.10544,59166.0,59165.0,0.070591]
[1723877284119,0.17294903,59166.0,59165.0,0.070591]
[1723877284515,0.10544,59166.0,59165.0,0.070591]
[1723877284825,0.15244,59166.0,59165.0,0.003]
[1723877286919,0.15244,59166.0,59165.0,0.05363877]
[1723877287217,0.00204,59166.0,59165.0,0.12123318]
[1723877287418,0.00204,59166.0,59165.0,0.070591]
[1723877288519,0.00204,59166.0,59165.0,0.13811765]
[1723877289928,0.06955232,59166.0,59165.0,0.13811765]
[1723877294222,0.06955232,59166.0,59165.0,0.070591]
[1723877296031,0.16295232,59166.0,59165.0,0.070591]
[1723877296215,0.16295232,59166.0,59165.0,0.13813203]
[1723877297518,0.09544,59166.0,59165.0,0.070591]
[1723877306029,0.28544,59166.0,59165.0,0.070591]
[1723877315739,0.19204,59166.0,59165.0,0.070591]
[1723877317629,0.25955232,59166.0,59165.0,0.070591]
[1723877324740,0.19204,59166.0,59165.0,0.24658659]
[1723877326547,0.25955232,59166.0,59165.0,0.24658659]
[1723877327338,0.25955232,59166.0,59165.0,0.16220169]
[1723877327640,0.25955232,59166.0,59165.0,0.16217333]
[1723877329533,0.65168,59172.0,59165.0,1.06921239]
[1723877329534,0.00088,59172.0,59165.0,1.06921239]
[1723877329848,0.06760312,59176.0,59171.0,0.55542701]
[1723877330141,0.06760312,59179.0,59178.0,0.067576]
[1723877330338,0.00025343,59180.0,59178.0,0.521776]
[1723877330549,0.03025343,59180.0,59179.0,0.06748455]
[1723877331437,0.03025343,59180.0,59178.0,0.22846055]
[1723877331638,0.03725343,59180.0,59178.0,0.22846055]
[1723877332233,0.03725343,59180.0,59178.0,0.13506055]
[1723877332234,0.0934,59179.0,59178.0,0.13506055]
[1723877332539,0.1234,59179.0,59178.0,0.00995296]
[1723877332740,0.12344,59179.0,59178.0,0.05058079]
[1723877332938,0.12344,59179.0,59177.0,0.06748455]
[1723877333332,0.12344,59179.0,59176.0,0.13506255]
[1723877333538,0.0934,59177.0,59176.0,0.067578]
[1723877333743,0.1234,59177.0,59176.0,0.067578]
[1723877334742,0.12344,59177.0,59176.0,0.067578]
[1723877335143,0.12844,59177.0,59176.0,0.067578]
[1723877335545,0.13444,59177.0,59176.0,0.067578]
[1723877337450,0.13444,59177.0,59176.0,0.00994449]
[1723877337650,0.13444,59177.0,59176.0,0.0505571]
[1723877338256,0.13444,59177.0,59176.0,0.05055716]
[1723877338651,0.13444,59177.0,59173.0,0.14496346]
[1723877338841,0.0934,59174.0,59173.0,0.07747891]
[1723877339045,0.3334,59174.0,59173.0,0.07747891]
[1723877339954,0.33344,59174.0,59173.0,0.07747891]
[1723877340251,0.33444,59174.0,59173.0,0.07747891]
[1723877341251,0.33744,59174.0,59173.0,0.07747891]
[1723877341457,0.33744,59174.0,59173.0,0.14496346]
[1723877343451,0.33744,59174.0,59173.0,0.07747891]
[1723877345447,0.24404,59174.0,59173.0,0.07747891]
[1723877345661,0.33744,59174.0,59173.0,0.07747891]
[1723877347651,0.33744,59174.0,59173.0,0.12804435]
[1723877348448,0.33744,59174.0,59173.0,0.07747891]
[1723877349158,0.33744,59174.0,59173.0,0.12804435]
[1723877349356,0.33744,59174.0,59173.0,0.07747891]
[1723877350147,0.33744,59174.0,59173.0,0.12805243]
[1723877350348,0.33744,59174.0,59173.0,0.07747891]
[1723877350654,0.24404,59174.0,59173.0,0.07747891]
[1723877350855,0.33744,59174.0,59173.0,0.07747891]
[1723877353553,0.24404,59174.0,59173.0,0.17087891]
[1723877353954,0.24404,59174.0,59173.0,0.23836346]
[1723877356446,0.24404,59174.0,59173.0,0.17087891]
[1723877362563,0.24404,59174.0,59173.0,0.25523143]
[1723877363464,0.24404,59174.0,59173.0,0.3477925]
[1723877365957,0.24404,59174.0,59173.0,0.25523143]
[1723877368161,0.33744,59174.0,59173.0,0.16183143]
[1723877368366,0.40504312,59174.0,59173.0,0.07747891]
[1723877369364,0.40504312,59174.0,59173.0,0.16183143]
[1723877372865,0.33744,59174.0,59173.0,0.17014067]
[1723877373769,0.33744,59174.0,59173.0,0.25459923]
[1723877374460,0.24404,59174.0,59173.0,0.25459923]
[1723877374657,0.24404,59174.0,59173.0,0.17014067]
[1723877375264,0.24404,59174.0,59173.0,0.26354067]
[1723877382675,0.24404,59174.0,59173.0,0.41426768]
[1723877383072,0.24404,59174.0,59173.0,0.31304067]
[1723877383275,0.00025343,59180.0,59179.0,0.067575]
[1723877383572,0.00025343,59180.0,59179.0,1.11572533]
[1723877383776,0.00025343,59180.0,59179.0,1.62264533]
[1723877384662,0.00825343,59180.0,59179.0,1.62264533]
[1723877384969,0.01725343,59180.0,59179.0,1.52135676]
[1723877385167,0.01725343,59180.0,59179.0,1.56915676]
[1723877385568,0.01438604,59180.0,59179.0,1.56915676]
[1723877385976,0.01438604,59180.0,59179.0,1.77593487]
[1723877386367,0.01438604,59180.0,59179.0,1.67475957]
[1723877386573,0.01438604,59180.0,59179.0,1.77585771]
[1723877386776,0.01438604,59180.0,59179.0,1.6702549]
[1723877387672,0.01438604,59180.0,59179.0,1.56915676]
[1723877387871,0.01438604,59180.0,59179.0,1.6702549]
[1723877388170,0.00025343,59185.0,59184.0,0.067569]
[1723877388366,0.00025343,59185.0,59184.0,1.02293915]
[1723877388561,0.00025343,59185.0,59184.0,1.78189367]
[1723877388766,0.00025343,59185.0,59184.0,1.93254442]
[1723877389278,0.00025343,59185.0,59184.0,1.93354442]
[1723877389279,0.01425343,59185.0,59184.0,1.93354442]
[1723877389571,0.01425343,59185.0,59184.0,1.83249367]
[1723877390079,0.01425343,59185.0,59184.0,1.88179367]
[1723877390483,0.02725343,59185.0,59184.0,1.95036267]
[1723877390972,0.02725343,59185.0,59184.0,2.21141342]
[1723877391278,0.02725343,59185.0,59184.0,1.95036267]
[1723877391475,0.02725343,59185.0,59184.0,2.05122869]
[1723877392575,0.02725343,59185.0,59184.0,2.31116267]
[1723877393264,0.02725343,59185.0,59184.0,2.30734022]
[1723877393463,0.02725343,59185.0,59184.0,2.41293143]
[1723877393677,0.02725343,59185.0,59184.0,2.46734022]
[1723877393877,0.02725343,59185.0,59184.0,2.57292195]
[1723877394978,0.02725343,59185.0,59184.0,2.56811873]
[1723877395367,0.02725343,59185.0,59184.0,2.56811068]
[1723877395675,0.02725343,59185.0,59184.0,2.46734022]
[1723877397670,0.02725343,59185.0,59184.0,2.46672459]
[1723877399171,0.02725343,59185.0,59184.0,2.37332459]
[1723877399370,0.02725343,59185.0,59184.0,2.46672459]
[1723877403379,0.02725343,59185.0,59184.0,2.37332459]
[1723877403679,0.02725343,59185.0,59184.0,2.46252212]
[1723877403883,0.02725343,59185.0,59184.0,2.37850091]
[1723877404582,0.02725343,59185.0,59184.0,2.32890091]
[1723877405168,0.02725343,59185.0,59184.0,2.41292212]
[1723877405675,0.02725343,59185.0,59184.0,2.05248755]
[1723877406173,0.02725343,59185.0,59184.0,2.45248755]
[1723877406373,0.02725343,59185.0,59184.0,1.38463855]
[1723877406672,0.02725343,59185.0,59184.0,0.12001709]
[1723877406876,0.02725343,59185.0,59184.0,0.07798627]
[1723877407984,0.02725343,59185.0,59184.0,0.069569]
[1723877408476,0.02725343,59185.0,59184.0,0.12001709]
[1723877409982,0.02725343,59185.0,59184.0,0.21341709]
[1723877410380,0.02725343,59185.0,59184.0,0.162969]
[1723877410883,0.02725343,59185.0,59184.0,0.23023157]
[1723877411085,0.02725343,59185.0,59184.0,0.23871018]
[1723877411478,0.02725343,59185.0,59184.0,0.17144761]
[1723877423375,0.23725343,59185.0,59184.0,0.002]
[1723877423591,0.02725343,59185.0,59184.0,0.002]
[1723877424193,0.13725343,59185.0,59184.0,0.002]
[1723877424491,0.23065343,59185.0,59184.0,0.002]
[1723877425486,1.20510143,59185.0,59178.0,0.10111787]
[1723877425690,0.0934,59177.0,59168.0,0.11797085]
[1723877425886,0.3608,59175.0,59171.0,0.11814958]
[1723877426185,0.5108,59175.0,59171.0,0.067583]
[1723877426487,0.5108,59175.0,59172.0,0.01023993]
[1723877427195,0.51084,59175.0,59171.0,0.067583]
[1723877427581,0.51384,59175.0,59171.0,0.067583]
[1723877428292,0.51384,59175.0,59171.0,0.07779054]
[1723877428293,0.51584,59175.0,59171.0,0.07779054]
[1723877428787,0.56084,59175.0,59171.0,0.07779054]
[1723877429384,0.56084,59175.0,59172.0,0.067583]
[1723877430694,0.20004,59175.0,59172.0,0.067583]
[1723877430892,0.56084,59175.0,59172.0,0.067583]
[1723877432087,0.20004,59175.0,59172.0,0.067583]
[1723877432592,0.56084,59175.0,59172.0,0.067583]
[1723877433894,0.20004,59175.0,59172.0,0.067583]
[1723877434199,0.56084,59175.0,59172.0,0.067583]
[1723877434399,0.20004,59175.0,59172.0,0.067583]
[1723877434698,0.56084,59175.0,59172.0,0.067583]
[1723877437789,0.56084,59175.0,59173.0,0.067582]
[1723877438197,0.20004,59175.0,59173.0,0.067582]
[1723877438403,0.56084,59175.0,59173.0,0.067582]
[1723877439895,0.20004,59175.0,59173.0,0.067582]
[1723877440097,0.56084,59175.0,59173.0,0.067582]
[1723877440492,0.20004,59175.0,59173.0,0.067582]
[1723877440801,0.56084,59175.0,59173.0,0.067582]
[1723877441586,0.20004,59175.0,59173.0,0.067582]
[1723877441791,0.56084,59175.0,59173.0,0.067582]
[1723877441990,0.20004,59175.0,59173.0,0.067582]
[1723877442185,0.56084,59175.0,59173.0,0.067582]
[1723877442393,0.20004,59175.0,59173.0,0.067582]
[1723877442592,0.56084,59175.0,59173.0,0.067582]
[1723877443096,0.20004,59175.0,59173.0,0.067582]
[1723877444494,0.56084,59175.0,59173.0,0.067582]
[1723877444799,0.20004,59175.0,59173.0,0.067582]
[1723877444994,0.56084,59175.0,59173.0,0.067582]
[1723877445793,0.20004,59175.0,59173.0,0.067582]
[1723877445987,0.56084,59175.0,59173.0,0.067582]
[1723877446193,0.20004,59175.0,59173.0,0.067582]
[1723877446495,0.56084,59175.0,59173.0,0.067582]
[1723877447496,0.20004,59175.0,59173.0,0.067582]
[1723877447794,0.56084,59175.0,59173.0,0.067582]
[1723877448205,0.20004,59175.0,59173.0,0.067582]
[1723877448404,0.56084,59175.0,59173.0,0.067582]
[1723877451202,0.25052535,59175.0,59173.0,0.067582]
[1723877451408,0.61132535,59175.0,59173.0,0.067582]
[1723877452109,0.25052535,59175.0,59173.0,0.067582]
[1723877452411,0.20004,59175.0,59173.0,0.067582]
[1723877452600,0.56084,59175.0,59173.0,0.067582]
[1723877453496,0.20004,59175.0,59173.0,0.067582]
[1723877453703,0.56084,59175.0,59173.0,0.067582]
[1723877454208,0.56084,59175.0,59173.0,0.11814858]
[1723877454397,0.20004,59175.0,59173.0,0.11814858]
[1723877454805,0.56084,59175.0,59173.0,0.11814858]
[1723877455510,0.58822445,59175.0,59173.0,0.13500411]
[1723877456807,0.22742445,59175.0,59173.0,0.13500411]
[1723877457004,0.58822445,59175.0,59173.0,0.13500411]
[1723877457410,0.65580445,59175.0,59172.0,0.06742211]
[1723877457609,0.65580445,59175.0,59174.0,0.05095555]
[1723877457909,0.75690237,59175.0,59174.0,0.00025343]
[1723877459607,0.39610237,59175.0,59174.0,0.00025343]
[1723877459810,0.75690237,59175.0,59174.0,0.00025343]
[1723877460898,0.3961036,59175.0,59174.0,0.00025343]
[1723877461103,0.65580568,59175.0,59174.0,0.00025343]
[1723877462019,0.29500568,59175.0,59174.0,0.00025343]
[1723877462407,0.65580568,59175.0,59174.0,0.00025343]
[1723877465506,0.29500568,59175.0,59174.0,0.00025343]
[1723877465714,0.65580568,59175.0,59174.0,0.00025343]
[1723877467516,0.29500568,59175.0,59174.0,0.00025343]
[1723877468020,0.65580568,59175.0,59174.0,0.00025343]
[1723877469114,0.29500568,59175.0,59174.0,0.00025343]
[1723877469322,0.067582,59173.0,59172.0,0.05070212]
[1723877469624,0.550982,59173.0,59172.0,0.05070212]
[1723877470420,0.6353392,59173.0,59172.0,0.05070212]
[1723877470715,0.6353792,59173.0,59172.0,0.05070212]
[1723877470922,0.6353792,59173.0,59170.0,0.01010872]
[1723877470923,0.067584,59171.0,59170.0,0.07753083]
[1723877471113,0.397584,59171.0,59170.0,0.06742211]
[1723877471309,0.396584,59171.0,59170.0,0.06742211]
[1723877472016,0.757384,59171.0,59170.0,0.06742211]
[1723877472215,0.757384,59171.0,59170.0,0.06942211]
[1723877472216,0.75846831,59171.0,59170.0,0.06942211]
[1723877472417,0.75846831,59171.0,59170.0,0.07242211]
[1723877472609,0.75846831,59171.0,59170.0,0.005]
[1723877475720,0.39766831,59171.0,59170.0,0.005]
[1723877476025,0.75846831,59171.0,59170.0,0.005]
[1723877478926,0.39766831,59171.0,59170.0,0.005]
[1723877479330,0.75846831,59171.0,59170.0,0.005]
[1723877479623,0.39766831,59171.0,59170.0,0.005]
[1723877479829,0.75846831,59171.0,59170.0,0.005]
[1723877480023,0.39766831,59171.0,59170.0,0.005]
[1723877480322,0.75846831,59171.0,59170.0,0.005]
[1723877481326,0.39766831,59171.0,59170.0,0.005]
[1723877481832,0.75846831,59171.0,59170.0,0.005]
[1723877483230,0.75846831,59171.0,59170.0,0.05568047]
[1723877484116,0.84282393,59171.0,59170.0,0.05568047]
[1723877484321,0.75846831,59171.0,59170.0,0.05568047]
[1723877485224,0.78585534,59171.0,59170.0,0.05568047]
[1723877485528,0.75846831,59171.0,59170.0,0.05568047]
[1723877485725,0.78585534,59171.0,59170.0,0.05568047]
[1723877487827,0.71927134,59171.0,59167.0,0.06742211]
[1723877488130,0.160988,59168.0,59167.0,0.06742211]
[1723877488325,0.490988,59168.0,59167.0,0.06742211]
[1723877488630,0.490988,59168.0,59166.0,0.01022657]
[1723877488822,0.06749417,59167.0,59165.0,0.0969]
[1723877489024,0.06249417,59166.0,59165.0,0.0969]
[1723877489224,0.18104431,59166.0,59165.0,0.0969]
[1723877489532,0.18104431,59166.0,59165.0,0.10725172]
[1723877490019,0.17504431,59166.0,59165.0,0.10725172]
[1723877490226,0.17508431,59166.0,59165.0,0.10725172]
[1723877490621,0.17008431,59166.0,59165.0,0.10725172]
[1723877491232,0.17108431,59166.0,59165.0,0.10925172]
[1723877491824,0.17208431,59166.0,59165.0,0.10925172]
[1723877495933,0.22270769,59166.0,59165.0,0.26374917]
[1723877496240,0.17208431,59166.0,59165.0,0.34822569]
[1723877496928,0.17208431,59166.0,59165.0,0.44162569]